bitfinex-derivatives/quotes_ETHF0:USTF0_20241026
["timestamp","ask_amount","ask_price","bid_price","bid_amount"]
[1729972773231,1.70726608,2487.7,2487.6,0.8678]
[1729972773435,1.30478608,2487.7,2487.6,1.27029]
[1729972777235,1.70726608,2487.7,2487.6,0.8678]
[1729972777424,1.30478608,2487.7,2487.6,1.27029]
[1729972777628,1.30478608,2487.7,2487.6,1.39614823]
[1729972777830,1.30478608,2487.7,2487.6,2.02543977]
[1729972778037,1.30478608,2487.7,2487.6,1.62294977]
[1729972778038,1.70726608,2487.7,2487.6,1.62294977]
[1729972778441,1.30478608,2487.7,2487.6,61.93399608]
[1729972778735,1.30478608,2487.7,2487.6,62.33648608]
[1729972779530,1.30478608,2487.7,2487.6,62.33648557]
[1729972780138,1.70726608,2487.7,2487.6,61.93399557]
[1729972780731,1.30478608,2487.7,2487.6,61.70719403]
[1729972780936,1.30478608,2487.7,2487.6,62.33648812]
[1729972781335,1.70726608,2487.7,2487.6,61.93399812]
[1729972782339,1.30478608,2487.7,2487.6,62.33648812]
[1729972782732,1.70726608,2487.7,2487.6,61.93399812]
[1729972782933,2.15676608,2487.7,2487.6,61.93399812]
[1729972783240,1.75428608,2487.7,2487.6,61.93399812]
[1729972783631,1.75428608,2487.7,2487.6,62.33648812]
[1729972784136,2.15676608,2487.7,2487.6,61.93399812]
[1729972784434,1.75428608,2487.7,2487.6,61.93399812]
[1729972784640,1.75428608,2487.7,2487.6,62.2106304]
[1729972784944,2.15676608,2487.7,2487.6,61.17884631]
[1729972785127,1.75428608,2487.7,2487.6,61.17884631]
[1729972785331,2.15676608,2487.7,2487.6,61.17884631]
[1729972786128,1.75428608,2487.7,2487.6,61.58133631]
[1729972786332,2.15676608,2487.7,2487.6,61.17884631]
[1729972788646,1.75428608,2487.7,2487.6,61.17884631]
[1729972789751,2.15676608,2487.7,2487.6,61.17884631]
[1729972790242,1.75428608,2487.7,2487.6,61.17884631]
[1729972791840,3.2078,2487.8,2487.7,0.40248]
[1729972792043,0.40241,2488.2,2488.0,0.40242]
[1729972792044,3.2078,2488.1,2488.0,0.40242]
[1729972792647,3.2078,2488.1,2488.0,1.24302]
[1729972793035,3.2078,2488.1,2488.0,0.8406]
[1729972793241,4.51258608,2488.1,2488.0,0.8406]
[1729972793442,4.91499608,2488.1,2488.0,0.8406]
[1729972793838,4.51258608,2488.1,2488.0,0.8406]
[1729972794049,4.51258608,2488.1,2488.0,1.24303]
[1729972794350,4.51258608,2488.1,2488.0,0.8406]
[1729972795050,4.51258608,2488.1,2488.0,1.67963]
[1729972796251,1.30478608,2488.1,2488.0,2.98441608]
[1729972796650,3.2078,2488.2,2488.0,2.98441608]
[1729972796651,3.2078,2488.2,2488.0,2.58198608]
[1729972796852,3.2078,2488.2,2488.1,0.40241]
[1729972796853,4.51258608,2488.2,2488.1,0.40241]
[1729972797351,4.51258608,2488.2,2488.0,2.58198608]
[1729972797552,3.2078,2488.2,2488.1,0.40241]
[1729972797854,3.2078,2488.2,2488.0,2.58198608]
[1729972798053,1.30478608,2488.1,2488.0,2.98439608]
[1729972800157,3.2078,2488.2,2488.0,2.58198608]
[1729972800347,4.51258608,2488.2,2488.1,1.70719608]
[1729972800553,3.2078,2488.2,2488.1,1.70719608]
[1729972801848,3.2078,2488.2,2488.1,2.46216533]
[1729972803257,4.91497608,2488.2,2488.1,0.75496925]
[1729972803446,4.51258608,2488.2,2488.0,1.2772]
[1729972803755,0.40241,2488.1,2488.0,1.67962]
[1729972803955,0.40241,2488.1,2488.0,2.43461057]
[1729972804350,0.40241,2488.1,2488.0,1.67962]
[1729972804858,0.40241,2488.1,2488.0,1.80545179]
[1729972805056,0.40241,2488.1,2488.0,1.67962]
[1729972805556,3.61021,2488.2,2488.1,0.40241]
[1729972806158,3.2078,2488.2,2488.0,2.58198608]
[1729972806353,3.61021,2488.2,2488.1,0.40241]
[1729972806748,3.2078,2488.2,2488.1,1.70719608]
[1729972806955,3.2078,2488.2,2488.1,5.72639608]
[1729972807765,3.61019,2488.2,2488.1,5.72639608]
[1729972808258,3.2078,2488.2,2488.1,5.72639608]
[1729972808668,0.84739,2488.3,2488.2,0.40239]
[1729972808964,0.40238,2488.3,2488.2,0.40239]
[1729972809365,0.4281,2488.4,2488.2,1.30478608]
[1729972809571,1.74658608,2488.5,2488.3,0.40238]
[1729972809572,2.14894608,2488.5,2488.3,0.40238]
[1729972809871,2.14894608,2488.5,2488.4,0.83296]
[1729972810375,0.4418,2488.5,2488.4,2.13774608]
[1729972810756,0.4418,2488.5,2488.4,2.56824608]
[1729972812664,3.6496,2488.5,2488.4,2.56824608]
[1729972813466,0.4418,2488.5,2488.4,2.56824608]
[1729972813672,3.6496,2488.5,2488.4,2.56824608]
[1729972814566,2.12710608,2488.7,2488.5,0.40234]
[1729972814763,3.2078,2488.9,2488.6,1.30478608]
[1729972814964,0.4331,2488.8,2488.7,1.71608608]
[1729972815161,0.4331,2488.8,2488.7,2.11839608]
[1729972815360,0.4331,2488.8,2488.7,1.71608608]
[1729972815560,0.8354,2488.8,2488.7,1.71608608]
[1729972815857,0.8354,2488.8,2488.7,0.4113]
[1729972815858,2.14018608,2488.8,2488.7,0.4113]
[1729972816057,1.73788608,2488.8,2488.5,1.30478608]
[1729972816258,1.70710608,2488.7,2488.5,1.30478608]
[1729972816662,0.4331,2488.8,2488.4,1.73538608]
[1729972816865,4.91493608,2488.5,2488.4,0.4306]
[1729972817259,4.91493608,2488.5,2488.3,0.4113]
[1729972817566,2.17988608,2488.4,2488.1,60.31104631]
[1729972817866,0.40238,2488.3,2488.1,62.01823239]
[1729972818262,2.60818608,2488.4,2488.1,60.31104631]
[1729972818263,1.30478608,2488.2,2488.1,60.31104631]
[1729972818464,1.70717608,2488.2,2488.1,60.31104631]
[1729972819063,1.30478608,2488.2,2488.1,60.31104631]
[1729972819288,1.30478608,2488.2,2488.1,60.71345631]
[1729972819464,1.30478608,2488.2,2488.1,60.31104631]
[1729972820866,1.70717608,2488.2,2488.1,60.31104631]
[1729972821867,5.72637608,2488.2,2488.1,60.31104631]
[1729972824969,5.72637608,2488.2,2488.1,59.93974627]
[1729972825168,5.79002089,2488.2,2488.1,59.93974627]
[1729972825471,10.1394276,2488.2,2488.1,57.84298628]
[1729972825677,10.13942899,2488.2,2488.1,57.02437628]
[1729972825977,10.13942959,2488.2,2488.1,55.19961628]
[1729972826275,10.07577801,2488.2,2488.1,53.41758628]
[1729972826470,10.13943075,2488.2,2488.1,53.41758628]
[1729972826974,10.13943075,2488.2,2488.1,50.04719682]
[1729972826975,11.38056409,2488.2,2488.1,50.04719682]
[1729972827277,11.38056409,2488.2,2488.1,46.65619682]
[1729972827478,11.38056409,2488.2,2488.1,45.66252682]
[1729972827770,11.38056409,2488.2,2488.1,43.65518682]
[1729972828877,11.38056409,2488.2,2488.1,42.83248682]
[1729972829076,10.07577801,2488.2,2488.1,42.83248682]
[1729972830073,8.77099193,2488.2,2488.1,42.83248682]
[1729972830278,10.07577801,2488.2,2488.1,42.83248682]
[1729972831881,10.93077801,2488.2,2488.1,42.83248682]
[1729972833570,5.27659,2488.2,2488.1,42.83248682]
[1729972833880,6.58137608,2488.2,2488.1,42.83248682]
[1729972838371,2.56217608,2488.2,2488.1,42.83248682]
[1729972839769,1.70717608,2488.2,2488.1,42.83248682]
[1729972839976,2.56217608,2488.2,2488.1,42.83248682]
[1729972841983,6.58137608,2488.2,2488.1,42.83248682]
[1729972842383,2.56217608,2488.2,2488.1,42.83248682]
[1729972844279,5.76997608,2488.2,2488.1,42.83248682]
[1729972845392,0.40272,2486.2,2486.1,0.4218]
[1729972845583,4.54152,2486.2,2486.1,0.4218]
[1729972845778,5.84630608,2486.2,2486.1,0.4218]
[1729972845982,5.44358608,2486.2,2486.1,0.4218]
[1729972846187,5.84630608,2486.2,2486.1,0.4218]
[1729972848486,4.54152,2486.2,2486.1,0.4218]
[1729972853801,3.61052,2486.2,2486.1,0.4218]
[1729972854407,3.2078,2486.2,2486.1,4.4442]
[1729972856299,3.61052,2486.2,2486.1,4.4442]
[1729972857802,3.61052,2486.2,2486.1,0.4218]
[1729972858001,3.61052,2486.2,2486.1,4.4442]
[1729972858599,3.61052,2486.2,2486.1,0.4218]
[1729972859698,0.40272,2486.2,2486.1,0.4218]
[1729972859899,3.61052,2486.2,2486.1,0.4218]
[1729972862094,3.61052,2486.2,2485.4,3.2078]
[1729972862095,8.23702,2486.2,2485.4,3.2078]
[1729972862295,3.2078,2485.6,2485.5,0.8773]
[1729972862505,3.2078,2485.9,2485.8,0.40278]
[1729972862904,3.2078,2485.9,2485.8,4.0224]
[1729972863205,0.40275,2486.1,2485.8,4.0224]
[1729972863406,0.40275,2486.1,2485.9,0.4342]
[1729972863599,3.2078,2486.2,2485.9,0.4342]
[1729972863903,0.40275,2486.1,2486.0,0.4367]
[1729972866013,3.61053,2486.2,2486.0,0.4367]
[1729972866315,0.40273,2486.1,2486.0,0.4367]
[1729972866813,4.1398,2486.2,2486.0,0.4367]
[1729972867003,0.40273,2486.1,2486.0,0.4367]
[1729972870211,3.2078,2486.2,2486.0,0.4367]
[1729972870406,4.54253,2486.2,2486.0,0.8557]
[1729972870608,4.1398,2486.2,2485.2,3.2078]
[1729972870808,3.2078,2486.1,2485.4,1.2485]
[1729972871007,3.61054,2486.1,2485.7,0.40279]
[1729972871415,0.40275,2486.0,2485.7,0.40279]
[1729972872206,0.40275,2486.0,2485.6,0.4028]
[1729972872406,0.40277,2485.9,2485.6,0.4028]
[1729972873048,0.40277,2485.9,2485.4,1.2485]
[1729972873242,0.40277,2485.9,2485.7,0.4028]
[1729972873539,3.2078,2486.1,2485.4,1.2485]
[1729972873736,0.40276,2486.0,2485.8,0.40278]
[1729972873936,3.61055,2486.1,2485.9,1.3264]
[1729972874451,3.61055,2486.1,2485.9,5.3488]
[1729972874936,3.61055,2486.1,2486.0,4.0224]
[1729972875255,1.00657,2486.8,2486.0,10.99552723]
[1729972875537,3.2078,2487.1,2486.7,2.82932723]
[1729972875728,3.2078,2487.1,2486.8,0.4109]
[1729972875729,0.4026,2486.9,2486.8,0.4109]
[1729972877328,6.03712723,2487.1,2486.8,0.4109]
[1729972877541,0.4026,2487.0,2486.8,0.4109]
[1729972878465,6.03712723,2487.1,2486.5,0.82746]
[1729972878466,0.40261,2486.9,2486.5,0.82746]
[1729972879043,0.40262,2486.9,2486.5,0.82746]
[1729972879250,0.40262,2486.9,2486.5,0.4248]
[1729972879545,0.40262,2486.9,2486.6,0.40265]
[1729972879848,0.40263,2486.8,2486.5,0.82746]
[1729972880150,0.40263,2486.8,2486.6,0.40265]
[1729972880548,0.40263,2486.8,2486.5,0.4248]
[1729972881044,0.40263,2486.8,2486.6,0.40265]
[1729972881644,6.03712723,2487.1,2486.6,0.40265]
[1729972881840,0.4053,2486.7,2486.6,0.40265]
[1729972882651,0.80794,2486.7,2486.6,0.40265]
[1729972882950,0.4053,2486.7,2486.6,0.40265]
[1729972892355,2.11338174,2486.7,2486.6,0.40265]
[1729972892552,0.4053,2486.7,2486.6,0.40265]
[1729972894041,0.4053,2486.7,2486.6,0.82455]
[1729972894454,0.4053,2486.7,2486.6,1.70495]
[1729972901937,0.4479,2486.8,2486.7,0.40264]
[1729972919246,0.4479,2486.8,2486.7,0.52854002]
[1729972920445,0.4479,2486.8,2486.7,0.72998091]
[1729972920640,0.4479,2486.8,2486.7,1.35948551]
[1729972921847,0.4479,2486.8,2486.7,0.98178335]
[1729972922147,0.4479,2486.8,2486.7,1.61128935]
[1729972925551,0.4479,2486.8,2486.7,1.61129304]
[1729972927745,0.4479,2486.8,2486.7,1.3594906]
[1729972929235,0.4479,2486.8,2486.7,1.03214969]
[1729972929445,4.95834174,2487.0,2486.9,0.4026]
[1729972930542,1.75054174,2487.0,2486.9,0.4026]
[1729972930742,0.4209,2487.2,2486.9,0.4026]
[1729972930743,0.4209,2487.2,2487.1,0.40257]
[1729972930952,2.14594174,2487.2,2487.1,0.40257]
[1729972933042,1.30544174,2487.3,2487.1,1.30544174]
[1729972933238,1.30544174,2487.3,2487.2,1.70800174]
[1729972934038,1.30544174,2487.3,2487.2,2.03530214]
[1729972934238,1.30544174,2487.3,2487.2,2.9164371]
[1729972934441,1.30544174,2487.3,2487.2,2.28705498]
[1729972935248,1.30544174,2487.3,2487.2,2.91642995]
[1729972937050,1.30544174,2487.3,2487.2,2.28702733]
[1729972937254,1.30544174,2487.3,2487.2,2.91640298]
[1729972937451,1.30544174,2487.3,2487.2,2.28702733]
[1729972938455,1.30544174,2487.3,2487.2,2.03527707]
[1729972944449,4.0349,2487.5,2487.2,1.63271523]
[1729972944759,4.0349,2487.5,2487.4,0.40252]
[1729972944959,5.34034174,2487.5,2487.4,0.52839442]
[1729972946255,4.0349,2487.5,2487.4,0.52839442]
[1729972946554,5.34034174,2487.5,2487.4,0.52839442]
[1729972946750,5.34034174,2487.5,2487.4,0.52839111]
[1729972947150,2.13254174,2487.5,2487.4,0.52839111]
[1729972947558,5.34034174,2487.5,2487.4,0.12587111]
[1729972947757,5.34034174,2487.5,2487.4,0.52839111]
[1729972948160,5.34034174,2487.5,2487.4,0.12587111]
[1729972949055,5.34034174,2487.5,2487.4,0.52839111]
[1729972950260,5.34034174,2487.5,2487.4,0.40252]
[1729972955458,2.13254174,2487.5,2487.4,0.40252]
[1729972955757,5.34034174,2487.5,2487.4,0.40252]
[1729972957263,5.34034174,2487.5,2487.4,0.52839249]
[1729972957959,2.13254174,2487.5,2487.4,0.52839249]
[1729972958155,5.34034174,2487.5,2487.4,0.52839249]
[1729972959352,5.34034174,2487.5,2487.4,0.5283915]
[1729972960960,2.13254174,2487.5,2487.4,0.5283915]
[1729972961161,5.34034174,2487.5,2487.4,0.5283915]
[1729972961861,4.0349,2487.5,2487.4,0.5283915]
[1729972962063,4.0349,2487.5,2487.4,1.83383324]
[1729972962064,3.2078,2487.5,2487.4,1.83383324]
[1729972962265,1.30544174,2487.9,2487.7,0.40248]
[1729972962266,2.19744174,2487.9,2487.7,0.40248]
[1729972962459,0.892,2487.9,2487.8,0.84446]
[1729972962659,0.892,2487.9,2487.8,0.97031613]
[1729972963062,2.17684174,2488.0,2487.8,0.56785613]
[1729972963270,2.17684174,2488.0,2487.9,0.52829613]
[1729972963569,1.30544174,2488.0,2487.9,0.57015613]
[1729972964466,4.51324174,2488.0,2487.9,0.57015613]
[1729972965369,4.51324174,2488.0,2487.9,0.4443]
[1729972966576,4.51324174,2488.0,2487.8,0.84445]
[1729972970271,4.51324174,2488.0,2487.9,0.4086]
[1729972972266,4.51324174,2488.0,2487.9,0.53444959]
[1729972973476,8.93487174,2488.0,2487.9,0.12584959]
[1729972974176,8.93487174,2488.0,2487.9,0.12585467]
[1729972976977,5.72707174,2488.0,2487.9,0.12585467]
[1729972977174,8.93487174,2488.0,2487.9,0.12585467]
[1729972977778,0.40245,2487.9,2487.6,0.80888]
[1729972977978,1.04805,2487.9,2487.7,0.12585603]
[1729972978175,1.04805,2487.9,2487.6,0.80888]
[1729972978176,1.04805,2487.9,2487.8,0.12585603]
[1729972978476,2.35349174,2487.9,2487.8,0.12585603]
[1729972978683,6.37269174,2487.9,2487.8,0.12585603]
[1729972978975,5.97024174,2487.9,2487.8,0.12585603]
[1729972979170,2.35348174,2487.9,2487.8,0.12585603]
[1729972979374,6.37268174,2487.9,2487.8,0.12585603]
[1729972980674,6.37268174,2487.9,2487.3,0.6571]
[1729972980675,5.97024174,2487.9,2487.3,0.6571]
[1729972980984,4.91574174,2487.6,2487.4,0.32726715]
[1729972981182,0.6398,2487.5,2487.3,2.36507174]
[1729972981378,1.2443,2487.5,2487.4,0.32726384]
[1729972982182,2.95225174,2487.5,2487.4,0.32726384]
[1729972982390,3.59025174,2487.5,2487.4,0.32726384]
[1729972982685,3.59025174,2487.5,2487.4,0.12587071]
[1729972982891,3.59025174,2487.5,2487.4,0.327273]
[1729972983276,3.59025174,2487.5,2487.4,0.12587071]
[1729972983480,7.61025174,2487.5,2487.4,0.12587071]
[1729972984379,8.59593874,2487.5,2487.4,0.12587071]
[1729972984983,8.59593874,2487.5,2487.0,1.30544174]
[1729972984984,0.40256,2487.2,2487.0,1.30544174]
[1729972985189,0.6435,2487.1,2487.0,1.30544174]
[1729972985690,0.6435,2487.1,2487.0,1.63275498]
[1729972986791,1.04607,2487.1,2487.0,1.63275498]
[1729972987989,2.35151174,2487.1,2487.0,0.32731324]
[1729972988187,2.99701174,2487.1,2487.0,0.32731324]
[1729972988585,1.69157,2487.1,2487.0,0.32731324]
[1729972990496,4.51324174,2487.2,2487.0,0.32731324]
[1729972990794,3.2078,2487.2,2487.1,2.03531358]
[1729972992391,3.2078,2487.2,2487.1,2.03529639]
[1729972992690,2.2006,2487.2,2487.1,2.03529391]
[1729972994090,3.2078,2487.3,2487.2,0.40255]
[1729972994291,4.48129,2487.7,2487.4,0.40251]
[1729972994496,1.27346,2487.8,2487.6,1.70793174]
[1729972994788,1.30544174,2487.9,2487.7,0.6601]
[1729972994984,1.70789174,2487.9,2487.7,1.96554174]
[1729972995187,0.871,2487.9,2487.8,1.30544174]
[1729972995391,3.2078,2488.0,2487.8,5.45129705]
[1729972995589,3.2078,2488.0,2487.9,1.43129705]
[1729972996199,3.2078,2488.0,2487.9,1.96814174]
[1729972996495,3.2078,2488.0,2487.9,2.09398908]
[1729972997195,3.2078,2488.0,2487.9,6.51562908]
[1729972997391,2.16644174,2488.4,2488.1,0.4024]
[1729972997595,4.91559174,2488.5,2488.3,1.30544174]
[1729972997787,4.91559174,2488.5,2488.4,0.6237]
[1729972998183,3.2078,2488.5,2488.4,1.92914174]
[1729972999998,4.91559174,2488.5,2488.4,1.92914174]
[1729973000392,4.91559174,2488.5,2488.4,0.6237]
[1729973001997,4.91559174,2488.5,2488.4,1.92914174]
[1729973002998,4.91559174,2488.5,2488.4,0.6237]
[1729973006108,1.70779174,2488.5,2488.4,0.6237]
[1729973006405,0.40236,2488.4,2488.3,1.30544174]
[1729973006597,0.4024,2488.2,2488.0,1.30544174]
[1729973007101,0.4024,2488.2,2488.1,1.30544174]
[1729973007305,0.6301,2488.3,2488.1,1.30544174]
[1729973007504,1.03249,2488.3,2488.1,1.30544174]
[1729973007707,1.03249,2488.3,2488.2,1.2321]
[1729973008007,1.03249,2488.3,2488.2,2.53754174]
[1729973013414,2.33793174,2488.3,2488.2,2.53754174]
[1729973013610,2.95753174,2488.3,2488.2,2.53754174]
[1729973014305,2.95753174,2488.3,2488.2,1.91044174]
[1729973016110,2.95753174,2488.3,2488.2,1.30544174]
[1729973018001,0.4024,2488.2,2488.1,1.30544174]
[1729973020809,1.70784174,2488.2,2488.1,1.30544174]
[1729973021303,1.2497,2488.3,2487.9,1.30544174]
[1729973021503,0.40244,2487.9,2487.8,1.267]
[1729973021705,0.40243,2488.0,2487.9,1.30544174]
[1729973021920,0.40243,2488.0,2487.8,1.92044174]
[1729973021921,0.40244,2487.9,2487.8,1.92044174]
[1729973022213,3.59238174,2487.9,2487.8,0.615]
[1729973022418,3.59238174,2487.9,2487.8,1.92044174]
[1729973026111,3.18994174,2487.9,2487.8,1.92044174]
[1729973026613,2.28694,2487.9,2487.8,1.92044174]
[1729973027214,1.8845,2487.9,2487.8,1.92044174]
[1729973028010,4.51324174,2488.1,2487.8,1.92044174]
[1729973028211,4.46022,2488.1,2488.0,1.30544174]
[1729973030820,0.40243,2488.0,2487.9,2.54734174]
[1729973031616,1.70787174,2488.0,2487.9,0.6003]
[1729973036321,2.15544174,2488.1,2487.9,2.03159377]
[1729973036523,0.40243,2488.0,2487.9,1.90574174]
[1729973036723,0.40243,2488.0,2487.9,2.03158988]
[1729973038224,2.15544174,2488.1,2487.9,2.03158988]
[1729973038534,1.25242,2488.1,2488.0,0.12584814]
[1729973038831,4.46022,2488.1,2488.0,0.12584814]
[1729973039529,4.0578,2488.1,2488.0,0.12585099]
[1729973039728,4.46021,2488.1,2488.0,0.12585099]
[1729973040434,4.0578,2488.1,2487.9,1.90574174]
[1729973040631,0.40243,2488.0,2487.9,1.90574174]
[1729973044834,3.2078,2488.1,2487.9,1.90574174]
[1729973045035,0.40242,2488.1,2487.9,1.90574174]
[1729973045234,0.40243,2488.0,2487.9,1.90574174]
[1729973047636,0.40243,2488.0,2487.9,2.23293949]
[1729973048341,0.40243,2488.0,2487.9,1.90574174]
[1729973048643,0.40243,2488.0,2487.9,2.43430803]
[1729973049730,0.40243,2488.0,2487.9,1.12886629]
[1729973051039,5.72707174,2488.0,2487.9,0.52856629]
[1729973051245,0.40243,2488.0,2487.9,0.52856629]
[1729973054540,0.40243,2488.0,2487.9,0.20135847]
[1729973055143,4.51324174,2488.1,2487.9,0.20135847]
[1729973055338,4.91566174,2488.1,2487.9,0.20135847]
[1729973055840,0.40243,2488.0,2487.9,0.20135847]
[1729973056645,4.51324174,2488.1,2487.9,0.32720921]
[1729973056835,4.91567174,2488.1,2487.9,0.12585074]
[1729973057030,3.61023,2488.1,2488.0,0.12585074]
[1729973061237,3.61023,2488.1,2488.0,0.79015074]
[1729973061645,3.2078,2488.1,2488.0,1.96974174]
[1729973061844,3.2078,2488.1,2488.0,3.14081987]
[1729973062038,3.2078,2488.1,2488.0,3.34217365]
[1729973062842,3.2078,2488.1,2488.0,2.93974365]
[1729973063435,3.2078,2488.1,2488.0,3.19143594]
[1729973064144,3.2078,2488.1,2488.0,3.19143428]
[1729973066443,3.2078,2488.1,2488.0,3.82063916]
[1729973068149,3.2078,2488.1,2488.0,3.19143428]
[1729973068349,3.2078,2488.1,2488.0,3.8206402]
[1729973068747,3.2078,2488.1,2488.0,8.2422702]
[1729973069556,3.2078,2488.1,2488.0,7.8398402]
[1729973070250,3.2078,2488.1,2488.0,8.2422702]
[1729973070443,3.2078,2488.1,2488.0,7.36137187]
[1729973071247,0.4024,2488.2,2488.0,7.36137187]
[1729973071457,0.4024,2488.2,2488.1,1.63264187]
[1729973071753,0.4024,2488.2,2488.1,1.63260947]
[1729973072450,5.98344174,2488.4,2488.1,1.63260947]
[1729973072451,3.2078,2488.4,2488.1,1.63260947]
[1729973072652,3.61016,2488.4,2488.3,1.30544174]
[1729973073260,3.61016,2488.4,2488.3,1.43126747]
[1729973073560,3.2078,2488.4,2488.3,2.03496836]
[1729973073743,3.2078,2488.4,2488.3,1.63258836]
[1729973074146,3.2078,2488.4,2488.3,2.24678836]
[1729973074556,3.2078,2488.4,2488.3,2.64916836]
[1729973074754,3.2078,2488.4,2488.3,2.24678836]
[1729973075647,3.2078,2488.4,2488.3,2.64916836]
[1729973075954,3.2078,2488.4,2488.3,2.24678836]
[1729973076755,4.84055,2488.5,2488.3,2.24678482]
[1729973077048,4.84055,2488.5,2488.4,0.12582426]
[1729973078459,4.84055,2488.5,2488.4,0.32714286]
[1729973079153,1.63275,2488.5,2488.4,0.32714286]
[1729973079345,2.93819174,2488.5,2488.4,0.32714286]
[1729973082561,6.14599174,2488.5,2488.4,0.32714286]
[1729973082951,2.93819174,2488.5,2488.4,0.32714286]
[1729973083152,6.14599174,2488.5,2488.4,0.32714286]
[1729973083956,6.14599174,2488.5,2488.4,0.3271703]
[1729973084151,2.93819174,2488.5,2488.4,0.3271703]
[1729973084356,6.14599174,2488.5,2488.4,0.3271703]
[1729973085264,2.93819174,2488.5,2488.4,0.3271703]
[1729973085471,2.53584174,2488.5,2488.2,1.30544174]
[1729973085763,3.2078,2488.3,2488.2,1.30544174]
[1729973085965,3.2078,2488.3,2488.2,1.43127601]
[1729973087463,3.2078,2488.3,2488.2,1.43127648]
[1729973088562,3.61018,2488.3,2488.2,1.43127648]
[1729973090864,0.40238,2488.3,2488.2,1.43127648]
[1729973091174,0.40238,2488.3,2488.2,1.30544174]
[1729973091372,0.40238,2488.3,2488.2,1.43127599]
[1729973091971,3.61018,2488.3,2488.2,1.43127599]
[1729973092268,0.40238,2488.3,2488.2,1.43127599]
[1729973092462,3.61018,2488.3,2488.2,1.43127599]
[1729973093268,0.40238,2488.3,2488.2,1.43127599]
[1729973093462,3.61018,2488.3,2488.2,1.43127599]
[1729973093658,3.61018,2488.3,2488.2,1.88427947]
[1729973095065,3.61018,2488.3,2488.2,1.88428078]
[1729973097380,0.40238,2488.3,2488.2,1.88428078]
[1729973101277,5.53682174,2488.4,2488.2,1.88428078]
[1729973101581,5.53682174,2488.4,2488.3,0.32716989]
[1729973102477,4.23138,2488.4,2488.3,0.57883286]
[1729973102679,4.23138,2488.4,2488.3,1.22293286]
[1729973102883,3.829,2488.4,2488.3,1.22293286]
[1729973103185,4.23136,2488.4,2488.3,1.22293286]
[1729973103374,3.829,2488.4,2488.3,1.22293286]
[1729973104077,4.23136,2488.4,2488.3,1.22293286]
[1729973105577,1.02356,2488.4,2488.3,1.22293286]
[1729973106084,1.02356,2488.4,2488.3,1.22291455]
[1729973106272,0.6212,2488.4,2488.3,1.22291455]
[1729973106479,1.02356,2488.4,2488.3,1.22291455]
[1729973108775,1.02356,2488.4,2488.3,0.76992925]
[1729973109180,1.02356,2488.4,2488.3,0.97125599]
[1729973109586,0.6212,2488.4,2488.3,0.97125599]
[1729973110672,4.6686,2488.5,2488.3,2.67907773]
[1729973110869,4.6686,2488.5,2488.4,0.75062925]
[1729973111179,5.07095,2488.5,2488.4,0.75062925]
[1729973111372,4.6686,2488.5,2488.4,0.75062925]
[1729973112880,1.4608,2488.5,2488.4,0.75062925]
[1729973113079,5.07095,2488.5,2488.4,0.75062925]
[1729973113386,4.0478,2488.5,2488.4,0.95195181]
[1729973113574,4.0478,2488.5,2488.4,1.57115181]
[1729973114980,0.84,2488.5,2488.4,1.57115181]
[1729973115183,4.0478,2488.5,2488.4,1.57115181]
[1729973115779,4.0478,2488.5,2488.4,1.82280322]
[1729973116288,4.0478,2488.5,2488.4,2.22516322]
[1729973116476,4.0478,2488.5,2488.4,7.14664496]
[1729973116477,3.2078,2488.5,2488.4,7.14664496]
[1729973116681,3.2078,2488.5,2488.4,7.54900496]
[1729973117080,3.2078,2488.5,2488.4,3.57881801]
[1729973117385,3.2078,2488.5,2488.4,7.59721801]
[1729973117581,3.829,2489.0,2488.8,0.40229]
[1729973117781,3.829,2489.0,2488.4,8.20075801]
[1729973117782,3.61007,2489.0,2488.9,2.54194174]
[1729973117984,3.61007,2489.0,2488.9,1.2365]
[1729973117985,4.91551174,2489.0,2488.9,1.2365]
[1729973120685,4.91551174,2489.0,2488.9,0.6251]
[1729973122589,0.40231,2488.8,2488.6,1.30544174]
[1729973122883,0.40231,2488.7,2488.6,1.90454174]
[1729973123086,0.40233,2488.6,2488.5,1.30544174]
[1729973123287,1.05353,2488.6,2488.5,1.90454174]
[1729973123792,1.04002,2488.7,2488.5,1.90454174]
[1729973123993,0.6377,2488.7,2488.6,1.92664174]
[1729973124293,1.0535,2488.8,2488.6,1.92664174]
[1729973124588,1.0535,2488.8,2488.7,1.30544174]
[1729973125492,4.2613,2488.8,2488.7,1.30544174]
[1729973126391,3.6101,2488.8,2488.7,1.30544174]
[1729973127683,3.6101,2488.8,2488.7,1.63254712]
[1729973127684,4.2551,2488.8,2488.7,1.63254712]
[1729973127888,4.2551,2488.8,2488.7,1.63254706]
[1729973128087,4.2551,2488.8,2488.7,1.63254697]
[1729973128386,5.56054174,2488.8,2488.7,0.32710523]
[1729973130288,5.56054174,2488.8,2488.7,1.63254697]
[1729973130696,5.56054174,2488.8,2488.7,1.63255251]
[1729973130890,5.56054174,2488.8,2488.7,1.30544174]
[1729973131198,0.40233,2488.6,2488.5,1.90454174]
[1729973131397,0.40233,2488.6,2488.5,2.03035724]
[1729973131599,1.70777174,2488.6,2488.5,0.12581618]
[1729973134206,1.30544174,2488.6,2488.4,1.30544174]
[1729973134500,5.54825,2488.5,2488.4,1.30544174]
[1729973134689,5.54825,2488.5,2488.4,1.43126732]
[1729973135299,0.40236,2488.4,2488.3,1.30544174]
[1729973135498,0.40236,2488.4,2488.3,1.4312688]
[1729973138399,0.40236,2488.4,2488.3,1.30544174]
[1729973138600,0.40236,2488.4,2488.3,1.43127138]
[1729973138909,0.40236,2488.4,2488.3,1.63259967]
[1729973139900,1.70780174,2488.4,2488.3,1.63259967]
[1729973140097,1.70780174,2488.4,2488.3,0.12582964]
[1729973144100,5.72620174,2488.4,2488.3,0.12582964]
[1729973145698,5.72620174,2488.4,2488.0,2.60344174]
[1729973145699,0.40241,2488.1,2488.0,2.60344174]
[1729973145901,1.70785174,2488.1,2488.0,0.97808491]
[1729973146096,1.70785174,2488.1,2488.0,1.22976341]
[1729973146295,3.64415174,2488.1,2488.0,1.22976341]
[1729973147106,3.64415174,2488.1,2488.0,0.57886341]
[1729973147404,4.48315174,2488.1,2488.0,0.57886341]
[1729973148103,4.48315174,2488.1,2488.0,0.32718491]
[1729973149400,4.48315174,2488.1,2488.0,0.32720654]
[1729973150809,4.48315174,2488.1,2488.0,0.32720624]
[1729973151706,7.69095174,2488.1,2488.0,0.32720624]
[1729973153012,0.40243,2488.0,2487.8,1.97304174]